fUSD/lending_fUSD_20250120
["ID","MTS","AMOUNT","RATE_DAILY","PERIOD"]
[349669745,1737364256423,-150.87349606,0.00020117,2]
[349669746,1737364256432,-217.42,0.00020129,2]
[349669747,1737364256445,-202.49670505,0.00020186,2]
[349669748,1737364256454,-267.88777222,0.0002026,2]
[349669749,1737364256463,-202.49670505,0.00020281,2]
[349669750,1737364256473,-309.00425832,0.00020311,2]
[349669751,1737364256482,-500.0,0.00020312,2]
[349669752,1737364256491,-500.0,0.00020313,2]
[349669753,1737364256501,-500.0,0.00020313,2]
[349669754,1737364256511,-500.0,0.00020313,2]
[349669755,1737364256521,-500.0,0.00020313,2]
[349669756,1737364256531,-500.0,0.00020313,2]
[349669757,1737364256543,-517.63,0.00020313,2]
[349669758,1737364256552,-500.0,0.00020313,2]
[349669759,1737364256562,-500.0,0.00020313,2]
[349669760,1737364256572,-531.07,0.00020313,2]
[349669761,1737364256582,-500.0,0.00020313,2]
[349669762,1737364256591,-500.0,0.00020313,2]
[349669763,1737364256601,-522.22,0.00020313,2]
[349669764,1737364256610,-500.0,0.00020313,2]
[349669765,1737364256620,-500.0,0.00020313,2]
[349669766,1737364256629,-500.0,0.00020313,2]
[349669767,1737364256639,-500.0,0.00020313,2]
[349669768,1737364256648,-511.95,0.00020313,2]
[349669769,1737364256658,-500.0,0.00020313,2]
[349669770,1737364256668,-377.413323,0.00020313,2]
[349669771,1737364256678,-500.0,0.00020313,2]
[349669772,1737364256687,-500.0,0.00020313,2]
[349669773,1737364256697,-625.8,0.00020313,2]
[349669774,1737364256706,-638.93,0.00020313,2]
[349669775,1737364256716,-743.92,0.00020313,2]
[349669776,1737364256724,-500.0,0.00020313,2]
[349669777,1737364256734,-500.0,0.00020313,2]
[349669778,1737364256742,-542.72,0.00020313,2]
[349669779,1737364256753,-835.528084,0.00020313,2]
[349669780,1737364256762,-500.0,0.00020313,2]
[349669781,1737364256771,-500.0,0.00020313,2]
[349669782,1737364256779,-692.27,0.00020313,2]
[349669783,1737364256788,-500.0,0.00020313,2]
[349669784,1737364256797,-500.0,0.00020313,2]
[349669785,1737364256806,-869.44,0.00020313,2]
[349669786,1737364256815,-500.0,0.00020313,2]
[349669787,1737364256825,-500.0,0.00020313,2]
[349669788,1737364256835,-500.0,0.00020313,2]
[349669789,1737364256844,-733.09,0.00020313,2]
[349669790,1737364256855,-500.0,0.00020313,2]
[349669791,1737364256866,-677.5,0.00020313,2]
[349669792,1737364256876,-634.96,0.00020313,2]
[349669793,1737364256889,-500.0,0.00020313,2]
[349669794,1737364256899,-688.82,0.00020313,2]
[349669795,1737364256909,-500.0,0.00020313,2]
[349669796,1737364256918,-697.04,0.00020313,2]
[349669797,1737364256929,-500.0,0.00020313,2]
[349669798,1737364256940,-712.21,0.00020313,2]
[349669799,1737364256949,-500.0,0.00020313,2]
[349669800,1737364256958,-696.97,0.00020313,2]
[349669801,1737364256967,-538.88,0.00020313,2]
[349669802,1737364256976,-500.0,0.00020313,2]
[349669803,1737364256985,-500.0,0.00020313,2]
[349669804,1737364256996,-500.0,0.00020313,2]
[349669805,1737364257006,-500.0,0.00020313,2]
[349669806,1737364257015,-500.0,0.00020313,2]
[349669807,1737364257025,-251.4858009,0.00020313,2]
[349669808,1737364257034,-500.0,0.00020313,2]
[349669809,1737364257043,-674.93,0.00020313,2]
[349669810,1737364257052,-1012.88,0.00020313,2]
[349669811,1737364257062,-500.0,0.00020313,2]
[349669812,1737364257072,-500.0,0.00020313,2]
[349669813,1737364257082,-500.0,0.00020313,2]
[349669814,1737364257091,-500.0,0.00020313,2]
[349669815,1737364257101,-1044.14,0.00020313,2]
[349669816,1737364257111,-500.0,0.00020313,2]
[349669817,1737364257120,-500.0,0.00020313,2]
[349669818,1737364257130,-860.57,0.00020313,2]
[349669819,1737364257140,-500.0,0.00020313,2]
[349669820,1737364257149,-1213.14,0.00020313,2]
[349669821,1737364257158,-1000.0,0.00020313,2]
[349669822,1737364257167,-500.0,0.00020313,2]
[349669823,1737364257177,-500.0,0.00020313,2]
[349669824,1737364257186,-775.55,0.00020313,2]
[349669825,1737364257195,-552.08,0.00020313,2]
[349669826,1737364257205,-500.0,0.00020313,2]
[349669827,1737364257214,-500.0,0.00020313,2]
[349669828,1737364257223,-500.0,0.00020313,2]
[349669829,1737364257232,-632.46,0.00020313,2]
[349669830,1737364257241,-500.0,0.00020313,2]
[349669831,1737364257250,-774.4,0.00020313,2]
[349669832,1737364257259,-711.41,0.00020313,2]
[349669833,1737364257268,-1899.82,0.00020313,2]
[349669834,1737364257277,-590.72,0.00020313,2]
[349669835,1737364257286,-500.0,0.00020313,2]
[349669836,1737364257294,-580.97,0.00020313,2]
[349669837,1737364257406,-500.0,0.00020313,2]
[349669838,1737364257417,-961.44,0.00020313,2]
[349669839,1737364257426,-1051.01,0.00020313,2]
[349669840,1737364257435,-995.63,0.00020313,2]
[349669841,1737364257445,-500.0,0.00020313,2]
[349669842,1737364257454,-1784.98,0.00020313,2]
[349669843,1737364257463,-982.03,0.00020313,2]
[349669844,1737364257473,-878.13,0.00020313,2]
[349669845,1737364257482,-500.0,0.00020313,2]
[349669846,1737364257491,-1712.27,0.00020313,2]
[349669847,1737364257500,-500.0,0.00020313,2]
[349669848,1737364257509,-500.0,0.00020313,2]
[349669849,1737364257518,-500.0,0.00020313,2]
[349669850,1737364257528,-624.28,0.00020313,2]
[349669851,1737364257537,-1281.16,0.00020313,2]
[349669852,1737364257547,-705.55,0.00020313,2]
[349669853,1737364257556,-500.0,0.00020313,2]
[349669854,1737364257565,-602.33,0.00020313,2]
[349669855,1737364257575,-1122.57,0.00020313,2]
[349669856,1737364257584,-500.0,0.00020313,2]
[349669857,1737364257594,-574.09,0.00020313,2]
[349669858,1737364257602,-500.0,0.00020313,2]
[349669859,1737364257612,-2931.38,0.00020313,2]
[349669860,1737364257621,-951.51,0.00020313,2]
[349669861,1737364257630,-500.0,0.00020313,2]
[349669862,1737364257641,-500.0,0.00020313,2]
[349669863,1737364257650,-500.0,0.00020313,2]
[349669864,1737364257659,-1084.98,0.00020313,2]
[349669865,1737364257668,-890.26,0.00020313,2]
[349669866,1737364257677,-559.75,0.00020313,2]
[349669867,1737364257686,-659.02,0.00020313,2]
[349669868,1737364257696,-1259.19,0.00020313,2]
[349669869,1737364257705,-500.0,0.00020313,2]
[349669870,1737364257715,-986.13,0.00020313,2]
[349669871,1737364257724,-500.0,0.00020313,2]
[349669872,1737364257733,-500.0,0.00020313,2]
[349669873,1737364257743,-500.0,0.00020313,2]
[349669874,1737364257752,-500.0,0.00020313,2]
[349669875,1737364257761,-910.96,0.00020313,2]
[349669876,1737364257771,-1839.07,0.00020313,2]
[349669877,1737364257780,-500.0,0.00020313,2]
[349669878,1737364257790,-500.0,0.00020313,2]
[349669879,1737364257800,-689.88,0.00020313,2]
[349669880,1737364257810,-1195.66,0.00020313,2]
[349669881,1737364257819,-1885.54,0.00020313,2]
[349669882,1737364257828,-973.62,0.00020313,2]
[349669883,1737364257837,-500.0,0.00020313,2]
[349669884,1737364257846,-1475.67,0.00020313,2]
[349669885,1737364257860,-4719.83,0.00020313,2]
[349669886,1737364257871,-500.0,0.00020313,2]
[349669887,1737364257882,-500.0,0.00020313,2]
[349669888,1737364257894,-1631.88,0.00020313,2]
[349669889,1737364257907,-813.33,0.00020313,2]
[349669890,1737364257916,-500.0,0.00020313,2]
[349669891,1737364257925,-732.92,0.00020313,2]
[349669892,1737364257935,-500.0,0.00020313,2]
[349669893,1737364257945,-2020.24,0.00020313,2]
[349669894,1737364257955,-500.0,0.00020313,2]
[349669895,1737364257963,-500.0,0.00020313,2]
[349669896,1737364257974,-500.0,0.00020313,2]
[349669897,1737364257983,-500.0,0.00020313,2]
[349669898,1737364257992,-1059.82,0.00020313,2]
[349669899,1737364258001,-1270.22,0.00020313,2]
[349669900,1737364258010,-508.85,0.00020313,2]
[349669901,1737364258020,-500.0,0.00020313,2]
[349669902,1737364258029,-500.0,0.00020313,2]
[349669903,1737364258038,-500.0,0.00020313,2]
[349669904,1737364258048,-2587.04,0.00020313,2]
[349669905,1737364258058,-500.0,0.00020313,2]
[349669906,1737364258068,-630.65606055,0.00020313,2]
[349669907,1737364258077,-500.0,0.00020313,2]
[349669908,1737364258086,-611.44,0.00020313,2]
[349669909,1737364258098,-500.0,0.00020313,2]
[349669910,1737364258109,-2123.33,0.00020313,2]
[349669911,1737364258118,-500.0,0.00020313,2]
[349669912,1737364258127,-1746.92,0.00020313,2]
[349669913,1737364258137,-500.0,0.00020313,2]
[349669914,1737364258146,-1409.61,0.00020313,2]
[349669915,1737364258156,-500.0,0.00020313,2]
[349669916,1737364258170,-585.35,0.00020313,2]
[349669917,1737364258180,-500.0,0.00020313,2]
[349669918,1737364258191,-500.0,0.00020313,2]
[349669919,1737364258201,-500.0,0.00020313,2]
[349669920,1737364258210,-500.0,0.00020313,2]
[349669921,1737364258219,-500.0,0.00020313,2]
[349669922,1737364258229,-501.71,0.00020314,2]
[349669923,1737364258238,-500.0,0.00020314,2]
[349669924,1737364258248,-901.6,0.00020314,2]
[349669925,1737364258257,-500.0,0.00020314,2]
[349669926,1737364258266,-500.0,0.00020314,2]
[349669927,1737364258276,-500.0,0.00020314,2]
[349669928,1737364258285,-500.0,0.00020314,2]
[349669929,1737364258294,-562.16,0.00020314,2]
[349669930,1737364258303,-504.89,0.00020314,2]
[349669931,1737364258312,-611.03,0.00020314,2]
[349669932,1737364258321,-643.14,0.00020314,2]
[349669933,1737364258331,-500.0,0.00020314,2]
[349669934,1737364258340,-500.0,0.00020314,2]
[349669935,1737364258349,-500.0,0.00020314,2]
[349669936,1737364258358,-470.04492914,0.00020314,2]
[349669937,1737364258367,-500.0,0.00020314,2]
[349669938,1737364258377,-598.09,0.00020314,2]
[349669939,1737364258387,-500.0,0.00020314,2]
[349669940,1737364258397,-500.0,0.00020314,2]
[349669941,1737364258407,-500.0,0.00020314,2]
[349669942,1737364258416,-547.78,0.00020314,2]
[349669943,1737364258427,-500.0,0.00020314,2]
[349669944,1737364258439,-500.0,0.00020314,2]
[349669945,1737364258449,-500.0,0.00020314,2]
[349669946,1737364258458,-662.86,0.00020314,2]
[349669947,1737364258468,-500.0,0.00020314,2]
[349669948,1737364258479,-500.0,0.00020314,2]
[349669949,1737364258489,-500.0,0.00020314,2]
[349669950,1737364258498,-500.7,0.00020314,2]
[349669951,1737364258508,-635.81542197,0.00020314,2]
[349669952,1737364258517,-698.25,0.00020314,2]
[349669953,1737364258527,-500.0,0.00020314,2]
[349669954,1737364258536,-866.68,0.00020314,2]
[349669955,1737364258546,-516.37,0.00020314,2]
[349669956,1737364258555,-500.0,0.00020314,2]
[349669957,1737364258564,-500.0,0.00020314,2]
[349669958,1737364258575,-618.93,0.00020314,2]
[349669959,1737364258584,-500.0,0.00020314,2]
[349669960,1737364258594,-500.0,0.00020314,2]
[349669961,1737364258604,-500.0,0.00020315,2]
[349669962,1737364258614,-500.0,0.00020315,2]
[349669963,1737364258623,-590.52,0.00020315,2]
[349669964,1737364258633,-500.0,0.00020315,2]
[349669965,1737364258642,-523.6113865,0.00020315,2]
[349669966,1737364258651,-150.87349606,0.00020343,2]
[349669967,1737364258661,-500.0,0.00020356,2]
[349669968,1737364258670,-202.49670505,0.00020376,2]
[349669969,1737364258680,-5822.11061395,0.0002039,2]
[349669970,1737364258692,-202.49670505,0.00020471,2]
[349669971,1737364258701,-267.88777222,0.00020495,2]
[349669972,1737364258711,-2356.85,0.0002055,3]
[349669973,1737364258720,-202.49670505,0.00020567,2]
[349669974,1737364258729,-150.87349606,0.00020569,2]
[349669975,1737364258740,-500.0,0.00020587,2]
[349669976,1737364258749,-500.0,0.00020587,2]
[349669977,1737364258758,-500.0,0.00020587,2]
[349669978,1737364258767,-287.49839468,0.00020587,2]
[349669979,1737364258776,-500.0,0.00020587,2]
[349669980,1737364258785,-517.63,0.00020587,2]
[349669981,1737364258795,-500.0,0.00020587,2]
[349669982,1737364258804,-531.07,0.00020587,2]
[349669983,1737364258814,-639.2096161,0.00020587,2]
[349669984,1737364258823,-500.0,0.00020587,2]
[349669985,1737364258833,-522.22,0.00020587,2]
[349669986,1737364258842,-500.0,0.00020587,2]
[349669987,1737364258851,-500.0,0.00020587,2]
[349669988,1737364258860,-500.0,0.00020587,2]
[349669989,1737364258869,-500.0,0.00020587,2]
[349669990,1737364258880,-511.95,0.00020587,2]
[349669991,1737364258891,-500.0,0.00020587,2]
[349669992,1737364258902,-377.413323,0.00020587,2]
[349669993,1737364258912,-500.0,0.00020587,2]
[349669994,1737364258921,-500.0,0.00020587,2]
[349669995,1737364258933,-625.8,0.00020587,2]
[349669996,1737364258949,-638.93,0.00020587,2]
[349669997,1737364258959,-743.92,0.00020587,2]
[349669998,1737364258968,-485.0,0.00020587,2]
[349669999,1737364258979,-500.0,0.00020587,2]
[349670000,1737364258988,-542.72,0.00020587,2]
[349670001,1737364258998,-835.528084,0.00020587,2]
[349670002,1737364259008,-500.0,0.00020587,2]
[349670003,1737364259018,-500.0,0.00020587,2]
[349670004,1737364259028,-692.27,0.00020587,2]
[349670005,1737364259038,-500.0,0.00020587,2]
[349670006,1737364259047,-500.0,0.00020587,2]
[349670007,1737364259057,-869.44,0.00020587,2]
[349670008,1737364259066,-500.0,0.00020587,2]
[349670009,1737364259076,-500.0,0.00020587,2]
[349670010,1737364259085,-500.0,0.00020587,2]
[349670011,1737364259095,-733.09,0.00020587,2]
[349670012,1737364259104,-155.31474649,0.00020587,2]
[349670013,1737364259114,-677.5,0.00020587,2]
[349670014,1737364259123,-634.96,0.00020587,2]
[349670015,1737364259133,-500.0,0.00020587,2]
[349670016,1737364259143,-688.82,0.00020587,2]
[349670017,1737364259152,-500.0,0.00020587,2]
[349670018,1737364259162,-697.04,0.00020587,2]
[349670019,1737364259171,-500.0,0.00020587,2]
[349670020,1737364259180,-712.21,0.00020587,2]
[349670021,1737364259193,-500.0,0.00020587,2]
[349670022,1737364259202,-696.97,0.00020587,2]
[349670023,1737364259212,-538.88,0.00020587,2]
[349670024,1737364259222,-500.0,0.00020587,2]
[349670025,1737364259231,-500.0,0.00020587,2]
[349670026,1737364259241,-500.0,0.00020587,2]
[349670027,1737364259251,-500.0,0.00020587,2]
[349670028,1737364259260,-535.1573702,0.00020587,2]
[349670029,1737364259271,-674.93,0.00020587,2]
[349670030,1737364259281,-1012.88,0.00020587,2]
[349670031,1737364259291,-500.0,0.00020587,2]
[349670032,1737364259299,-500.0,0.00020587,2]
[349670033,1737364259309,-500.0,0.00020587,2]
[349670034,1737364259318,-500.0,0.00020587,2]
[349670035,1737364259328,-1044.14,0.00020587,2]
[349670036,1737364259338,-500.0,0.00020587,2]
[349670037,1737364259347,-500.0,0.00020587,2]
[349670038,1737364259356,-860.57,0.00020587,2]
[349670039,1737364259365,-500.0,0.00020587,2]
[349670040,1737364259375,-1213.14,0.00020587,2]
[349670041,1737364259383,-1000.0,0.00020587,2]
[349670042,1737364259393,-500.0,0.00020587,2]
[349670043,1737364259403,-500.0,0.00020587,2]
[349670044,1737364259412,-775.55,0.00020587,2]
[349670045,1737364259422,-552.08,0.00020587,2]
[349670046,1737364259431,-500.0,0.00020587,2]
[349670047,1737364259445,-500.0,0.00020587,2]
[349670048,1737364259455,-500.0,0.00020587,2]
[349670049,1737364259465,-632.46,0.00020587,2]
[349670050,1737364259475,-500.0,0.00020587,2]
[349670051,1737364259484,-774.4,0.00020587,2]
[349670052,1737364259494,-711.41,0.00020587,2]
[349670053,1737364259503,-1899.82,0.00020587,2]
[349670054,1737364259612,-590.72,0.00020587,2]
[349670055,1737364259622,-500.0,0.00020587,2]
[349670056,1737364259632,-580.97,0.00020587,2]
[349670057,1737364259641,-500.0,0.00020587,2]
[349670058,1737364259650,-961.44,0.00020587,2]
[349670059,1737364259660,-1051.01,0.00020587,2]
[349670060,1737364259670,-995.63,0.00020587,2]
[349670061,1737364259679,-500.0,0.00020587,2]
[349670062,1737364259690,-1784.98,0.00020587,2]
[349670063,1737364259700,-982.03,0.00020587,2]
[349670064,1737364259710,-878.13,0.00020587,2]
[349670065,1737364259719,-500.0,0.00020587,2]
[349670066,1737364259728,-1712.27,0.00020587,2]
[349670067,1737364259738,-500.0,0.00020587,2]
[349670068,1737364259748,-500.0,0.00020587,2]
[349670069,1737364259757,-500.0,0.00020587,2]
[349670070,1737364259766,-624.28,0.00020587,2]
[349670071,1737364259775,-1281.16,0.00020587,2]
[349670072,1737364259785,-705.55,0.00020587,2]
[349670073,1737364259794,-500.0,0.00020587,2]
[349670074,1737364259804,-602.33,0.00020587,2]
[349670075,1737364259813,-1122.57,0.00020587,2]
[349670076,1737364259823,-500.0,0.00020587,2]
[349670077,1737364259832,-574.09,0.00020587,2]
[349670078,1737364259842,-500.0,0.00020587,2]
[349670079,1737364259851,-2931.38,0.00020587,2]
[349670080,1737364259860,-951.51,0.00020587,2]
[349670081,1737364259870,-500.0,0.00020587,2]
[349670082,1737364259880,-584.39199028,0.00020587,2]
[349670083,1737364259890,-500.0,0.00020587,2]
[349670084,1737364259903,-1084.98,0.00020587,2]
[349670085,1737364259912,-890.26,0.00020587,2]
[349670086,1737364259923,-559.75,0.00020587,2]
[349670087,1737364259932,-659.02,0.00020587,2]
[349670088,1737364259944,-1259.19,0.00020587,2]
[349670089,1737364259954,-500.0,0.00020587,2]
[349670090,1737364259963,-986.13,0.00020587,2]
[349670091,1737364259973,-500.0,0.00020587,2]
[349670092,1737364259982,-500.0,0.00020587,2]
[349670093,1737364259992,-500.0,0.00020587,2]
[349670094,1737364260001,-500.0,0.00020587,2]
[349670095,1737364260011,-910.96,0.00020587,2]
[349670096,1737364260021,-1839.07,0.00020587,2]
[349670097,1737364260030,-500.0,0.00020587,2]
[349670098,1737364260039,-500.0,0.00020587,2]
[349670099,1737364260048,-121.94262084,0.00020587,2]
[349670100,1737364807816,281.98,0.00010137,2]
[349670102,1737365108211,61166.91469695,0.00012,2]
[349670103,1737365113426,550.0,0.00015,2]
[349670106,1737365200022,3892.03192926,0.00014888,2]
[349670107,1737365215829,1096.51328697,0.000149,2]
[349670113,1737365339296,4539.76049257,0.00014781,7]
[349670114,1737365349122,-195.17533426,0.00015322,2]
[349670115,1737365371124,-1123.47758169,0.00015322,2]
[349670136,1737365432172,-411.949238,0.00015322,2]
[349670137,1737365432182,-513.95194148,0.000154,2]
[349670138,1737365432191,-300.0,0.00015999,2]
[349670139,1737365432201,-9092.6323984,0.00016,2]
[349670140,1737365432229,-550.99181844,0.00016,2]
[349670141,1737365432238,-175.50650877,0.00016472,2]
[349670142,1737365432247,-956.72,0.00016572,2]
[349670143,1737365432257,-281.98,0.00016813,2]
[349670144,1737365432268,-420.0,0.00017492,2]
[349670145,1737365432280,-250.0,0.00017827,2]
[349670146,1737365432290,-150.0,0.00017999,2]
[349670147,1737365432299,-51842.79779663,0.00018,10]
[349670148,1737365432310,-175.50650876,0.00018064,2]
[349670149,1737365432319,-500.0,0.00018164,2]
[349670150,1737365432329,-500.0,0.00018164,2]
[349670151,1737365432340,-163.22,0.00018398,2]
[349670152,1737365432351,-165.82,0.00018477,2]
[349670153,1737365432361,-1500.0,0.00018507,2]
[349670154,1737365432370,-15945.07,0.00018695,2]
[349670155,1737365432379,-556.0,0.00018767,2]
[349670156,1737365432388,-593.92,0.00018823,30]
[349670157,1737365432397,-1000.0,0.00018825,2]
[349670158,1737365432405,-956.72,0.00018835,2]
[349670159,1737365432414,-250.0,0.00018848,2]
[349670160,1737365432424,-254.09,0.0001887,2]
[349670161,1737365432433,-1403.39,0.00018886,2]
[349670162,1737365432443,-202.38831052,0.000189,2]
[349670163,1737365432452,-2586.41,0.00018913,2]
[349670164,1737365432461,-789.04,0.00018929,2]
[349670165,1737365432470,-250.0,0.00018956,2]
[349670166,1737365432480,-10768.73223451,0.00019,2]
[349670167,1737365432489,-202.38831038,0.00019036,2]
[349670168,1737365432498,-167.39,0.00019047,2]
[349670169,1737365432510,-587.0,0.00019125,2]
[349670170,1737365432523,-1940.73,0.00019155,2]
[349670171,1737365432532,-202.38831038,0.00019173,2]
[349670172,1737365432541,-250.0,0.00019181,2]
[349670173,1737365432551,-174.98,0.00019219,2]
[349670174,1737365432560,-500.0,0.0001926,2]
[349670175,1737365432569,-609.89,0.00019265,2]
[349670176,1737365432579,-202.38831038,0.00019309,2]
[349670177,1737365432590,-2369.54,0.00019332,2]
[349670178,1737365432600,-165.82,0.000194,2]
[349670179,1737365432610,-1000.0,0.00019665,2]
[349670180,1737365432619,-1099.0975,0.00019665,2]
[349670181,1737365432628,-260.2249,0.00019764,2]
[349670182,1737365432638,-1472.793,0.00019764,2]
[349670183,1737365432647,-278.12992263,0.00019765,2]
[349670184,1737365432656,-500.0,0.00019765,2]
[349670185,1737365432666,-500.0,0.00019765,2]
[349670186,1737365432676,-500.0,0.00019765,2]
[349670187,1737365432686,-500.0,0.00019765,2]
[349670188,1737365432695,-474.75364189,0.00019765,2]
[349670189,1737365432705,-539.21910221,0.00019765,2]
[349670190,1737365432714,-500.0,0.00019765,2]
[349670191,1737365432723,-312.32733871,0.00019765,2]
[349670192,1737365432831,-202.38831038,0.00019445,2]
[349670193,1737365432844,-202.38831038,0.00019582,2]
[349670194,1737365432854,-187.67266129,0.00019765,2]
[349670195,1737365432864,-500.0,0.00019765,2]
[349670196,1737365432873,-500.0,0.00019765,2]
[349670197,1737365432883,-500.0,0.00019765,2]
[349670199,1737365432891,-500.0,0.00019765,2]
[349670201,1737365432900,-659.34,0.00019765,2]
[349670203,1737365432910,-542.29,0.00019765,2]
[349670205,1737365432920,-656.17,0.00019765,2]
[349670207,1737365432929,-745.86,0.00019765,2]
[349670208,1737365432939,-500.0,0.00019765,2]
[349670210,1737365432948,-500.0,0.00019765,2]
[349670212,1737365432957,-490.89419695,0.00019765,2]
[349670215,1737365432970,-9.10580305,0.00019765,2]
[349670217,1737365432979,-324.48804589,0.00019765,2]
[349670348,1737365437968,-202.38831038,0.00019718,2]
[349670349,1737365437978,-175.51195411,0.00019765,2]
[349670350,1737365437992,-500.0,0.00019765,2]
[349670351,1737365438002,-500.0,0.00019765,2]
[349670352,1737365438011,-441.69475388,0.00019765,2]
[349670353,1737365438024,-124.81524612,0.00019765,2]
[349670354,1737365438034,-403.75517955,0.00019765,2]
[349670355,1737365438082,-96.24482045,0.00019765,2]
[349670356,1737365438092,-500.0,0.00019765,2]
[349670357,1737365438103,-500.0,0.00019765,2]
[349670358,1737365438113,-260.30517955,0.00019765,2]
[349670359,1737365438138,-267.76482045,0.00019765,2]
[349670360,1737365438147,-500.0,0.00019765,2]
[349670361,1737365438157,-500.0,0.00019765,2]
[349670362,1737365438166,-500.0,0.00019765,2]
[349670363,1737365438176,-500.0,0.00019765,2]
[349670364,1737365438186,-500.0,0.00019765,2]
[349670365,1737365438196,-775.99,0.00019765,2]
[349670366,1737365438205,-500.0,0.00019765,2]
[349670367,1737365438215,-500.0,0.00019765,2]
[349670368,1737365438225,-500.0,0.00019765,2]
[349670369,1737365438235,-500.0,0.00019765,2]
[349670370,1737365438245,-500.0,0.00019765,2]
[349670371,1737365438255,-500.0,0.00019765,2]
[349670372,1737365438265,-500.0,0.00019765,2]
[349670373,1737365438278,-673.85,0.00019765,2]
[349670374,1737365438288,-500.0,0.00019765,2]
[349670375,1737365438298,-910.35,0.00019765,2]
[349670376,1737365438307,-550.45,0.00019765,2]
[349670377,1737365438316,-500.0,0.00019765,2]
[349670378,1737365438326,-500.0,0.00019765,2]
[349670379,1737365438335,-500.0,0.00019765,2]
[349670380,1737365438344,-644.53,0.00019765,2]
[349670381,1737365438355,-500.0,0.00019765,2]
[349670382,1737365438364,-500.0,0.00019765,2]
[349670383,1737365438379,-500.0,0.00019765,2]
[349670384,1737365438389,-202.38831038,0.00019855,2]
[349670385,1737365438399,-5101.3197,0.00019939,2]
[349670386,1737365438410,-316.7422,0.00019939,2]
[349670388,1737365438419,-726.4306955,0.00019939,2]
[349670389,1737365438429,-202.38831038,0.00019991,2]
[349670391,1737365438439,-600.41,0.0002,2]
[349670392,1737365438450,-1021.87639365,0.0002,2]
[349670393,1737365438467,-746.12092183,0.0002,2]
[349670394,1737365438477,-600.44571045,0.0002,2]
[349670395,1737365438486,-500.0,0.00020039,2]
[349670396,1737365438496,-500.0,0.00020039,2]
[349670397,1737365438506,-500.0,0.00020039,2]
[349670398,1737365438516,-500.0,0.00020039,2]
[349670399,1737365438525,-500.0,0.00020039,2]
[349670400,1737365438535,-500.0,0.00020039,2]
[349670401,1737365438545,-500.0,0.00020039,2]
[349670402,1737365438554,-659.34,0.00020039,2]
[349670403,1737365438564,-542.29,0.00020039,2]
[349670404,1737365438573,-656.17,0.00020039,2]
[349670405,1737365438582,-745.86,0.00020039,2]
[349670406,1737365438591,-500.0,0.00020039,2]
[349670407,1737365438602,-500.0,0.00020039,2]
[349670408,1737365438611,-500.0,0.00020039,2]
[349670409,1737365438620,-500.0,0.00020039,2]
[349670410,1737365438630,-566.51,0.00020039,2]
[349670411,1737365438640,-500.0,0.00020039,2]
[349670412,1737365438649,-500.0,0.00020039,2]
[349670413,1737365438659,-500.0,0.00020039,2]
[349670414,1737365438669,-528.07,0.00020039,2]